Cogmind - Beta 17 @@@ ROGUE MODE // 2026.07.05 @ 00:28:41 Player: Bikerider58 Result: Destroyed by H-77 Assassin with Coil Gun Performance ------------- Evolutions (7) 3500 Regions Visited (21) 4200 Robots Destroyed (191) 955 Value Destroyed (6560) 6560 Prototype IDs (45) 900 Alien Tech Used (0) 0 Bonus (20006) 20006 TOTAL SCORE: 36121 Bonus ------- High Alert Combat Kills 80 Follower Combat Kills 832 Prayed to X0-1V1 5000 Major X0-1V1 Interference 12450 Forged Quantum Companion 1000 Registered with UFD 300 Met Optimus in HQ 500 Met Data Miner 300 Friendly Fire -456 Cogmind --------- Core Integrity 0/1300 Matter 500/500 Energy 83/150 System Corruption 3% Temperature Cool (0) Movement Hovering (180) Ox2 Location -3/Research Parts ------- > --- POWER (2) -------- Micro Antimatter Reactor > --- PROPULSION (6) --- Improved Antigrav System > --- UTILITY (10) ----- Advanced Heat Sink Large Storage Unit Enhanced Optical Array Advanced Signal Interpreter Advanced Terrain Scan Processor Core Analyzer Graphene Brace Quantum Router > --- WEAPON (3) ------- Quantum Companion (fused) > --- INVENTORY (16) --- High-capacity Storage Unit Advanced Sensor Array Advanced ECM Suite Experimental Weapon Shielding Hardened Light Armor Plating Makeshift Hacking Suite Drone Bay (2/2) HERF Cannon Compact Mass Driver Compact Mass Driver Neutron Missile Launcher Hellfire Missile Launcher Improved Plasma Cutter CPS Tube (2) Peak State ------------ > --- POWER ------------ Light Nuclear Core Light Antimatter Reactor > --- PROPULSION ------- Antigrav System Gyrokinetic Inverter Cooled Gravmag System Cooled Gravmag System Improved Gyrokinetic Inverter Improved Linear Gravjet > --- UTILITY ---------- Large Storage Unit Enhanced Optical Array Advanced Signal Interpreter Advanced Terrain Scanner Advanced Terrain Scan Processor Core Analyzer Makeshift Light Armor Plating System Mapper Quantum Router X0-1V1's Piety Tracker > --- WEAPON ----------- Long-range Proton Cannon Quantum Companion > --- INVENTORY -------- Advanced ECM Suite Reaction Control System Experimental Weapon Shielding Graphene Brace Makeshift Hacking Suite Drone Bay HERF Cannon Compact Mass Driver Compact Mass Driver Heavy Shock Bomb Launcher Neutron Missile Launcher Hellfire Missile Launcher Hellfire Missile Launcher Improved Plasma Cutter CPS Tube [Rating: 138] Favorites ----------- Power Light Nuclear Core Engine Heavy Ion Engine Power Core Light Nuclear Core Reactor Antimatter Reactor Propulsion Light Treads Treads Light Treads Leg Carbon-fiber Leg Wheel Compact Wheel Hover Unit Cooled Gravmag System Flight Unit Cooled Cesium-ion Thruster Utility X0-1V1's Piety Tracker Device X0-1V1's Piety Tracker Storage High-capacity Storage Unit Processor Enhanced Optical Array Hackware Quantum Router Protection Layered Medium Armor Plating Weapon Heavy Particle Gun Energy Gun Heavy Particle Gun Energy Cannon Long-range Proton Cannon Ballistic Gun Light Assault Rifle Launcher Rocket Launcher Special Weapon Improved Remote Datajack Impact Weapon Heavy Flail Slashing Weapon Companion Sword Special Melee Weapon Improved Datajack Build | -11 -10 -9 -9 -9 -8 -8 -8 -8 -8 -6 -6 -6 -6 -5 -5 -5 -5 -5 -5 -4 -3 ------- Run | Yrd Mat Mat Min Exi Min Mat Sto Rec Scr Fac Low Low Dat Pro Fac Was Fac Upp Upp Fac Res Slots Evolved 14 | . . 2 . . . 2 . . . 4 . . . . 2 . . . . 2 2 Power . | . . . . . . . . . . . . . . . . . . . . . . Propulsion 5 | . . . . . . 1 . . . 2 . . . . 1 . . . . 1 . Utility 8 | . . 1 . . . 1 . . . 2 . . . . 1 . . . . 1 2 Weapon 1 | . . 1 . . . . . . . . . . . . . . . . . . . Parts Attached 188 | 8 1 9 4 4 8 9 12 2 3 16 15 14 10 1 21 4 13 . . 10 24 Power 28 | 1 . 1 . . 1 2 3 . . 2 3 2 . . 3 1 1 . . 2 6 Engine 10 | 1 . 1 . . . 1 2 . . 1 2 1 . . . . . . . . 1 Core 10 | . . . . . 1 . 1 . . 1 1 1 . . 2 1 1 . . 1 . Reactor 8 | . . . . . . 1 . . . . . . . . 1 . . . . 1 5 Propulsion 57 | 2 . 2 1 . 1 2 2 1 2 6 4 7 4 . 6 1 5 . . 2 9 Treads 15 | 2 . 2 1 . 1 1 2 1 1 2 2 . . . . . . . . . . Leg 16 | . . . . . . . . . . 3 1 4 4 . 2 . . . . . 2 Wheel 3 | . . . . . . 1 . . 1 . 1 . . . . . . . . . . Hover 18 | . . . . . . . . . . 1 . 3 . . 2 . 4 . . 1 7 Flight 5 | . . . . . . . . . . . . . . . 2 1 1 . . 1 . Utility 58 | 2 1 3 . 2 2 3 1 . . 6 3 3 5 1 10 1 4 . . 3 8 Device 29 | 1 . 2 . 1 2 3 . . . 2 2 3 2 . 5 1 1 . . 1 3 Storage 8 | 1 1 . . 1 . . . . . 1 . . 1 1 . . 1 . . . 1 Processor 9 | . . . . . . . . . . 2 1 . . . 2 . 2 . . 1 1 Hackware 3 | . . . . . . . . . . . . . . . 3 . . . . . . Protection 9 | . . 1 . . . . 1 . . 1 . . 2 . . . . . . 1 3 Artifact . | . . . . . . . . . . . . . . . . . . . . . . Weapon 45 | 3 . 3 3 2 4 2 6 1 1 2 5 2 1 . 2 1 3 . . 3 1 Energy Gun 8 | . . 2 . 1 . . 3 . . . 1 1 . . . . . . . . . Energy Cannon 6 | . . . . . . . . . . . . 1 . . 1 . 2 . . 1 1 Ballistic Gun 18 | 3 . 1 2 1 4 1 2 . . 1 2 . . . 1 . . . . . . Ballistic Cannon . | . . . . . . . . . . . . . . . . . . . . . . Launcher 4 | . . . 1 . . 1 . . . . 1 . . . . . . . . 1 . Special Weapon 2 | . . . . . . . . . . . . . 1 . . 1 . . . . . Impact Weapon 1 | . . . . . . . 1 . . . . . . . . . . . . . . Slashing Weapon 4 | . . . . . . . . . 1 1 1 . . . . . 1 . . . . Piercing Weapon . | . . . . . . . . . . . . . . . . . . . . . . Special Melee Weapon 2 | . . . . . . . . 1 . . . . . . . . . . . 1 . Unidentified Prototypes 18 | . . 2 . . . 1 3 . 1 1 . . 3 . 5 . 1 . . 1 . Parts Lost 92 | . . 2 3 . 1 9 2 . . 6 12 5 . 1 17 1 4 . . 5 24 Power 16 | . . . 1 . . 2 . . . 1 1 1 . . 3 . . . . 2 5 Propulsion 33 | . . 1 1 . 1 . 1 . . 2 5 4 . . 5 . 2 . . . 11 Utility 24 | . . . 1 . . 2 . . . 3 2 . . 1 7 1 1 . . 1 5 Weapon 19 | . . 1 . . . 5 1 . . . 4 . . . 2 . 1 . . 2 3 Highest Loss Streak 16 | . . 1 2 . 1 9 1 . . 3 5 3 . 1 15 1 2 . . 2 16 To Critical Strikes 1 | . . . . . . . . . . . . . . . 1 . . . . . . Average Backups 14 | . 5 13 15 16 20 18 17 20 20 16 9 10 14 20 18 5 5 10 11 10 14 Power . | . . . 1 1 1 . 1 1 1 . 1 1 1 1 . . . . . . . Propulsion 1 | . . 1 2 2 1 2 1 2 2 1 . . 1 3 3 . . . . . . Utility 5 | . 1 2 3 4 5 5 7 8 8 7 3 4 7 10 9 3 1 5 6 5 6 Weapon 4 | . 4 8 7 9 12 10 7 8 5 3 . 1 2 3 2 . . 2 2 2 4 Tool/Special . | . . . . . . . . . . . . . . . . . . . . . . Unused Backups 60 | . . 1 . 1 7 2 3 1 8 6 2 3 2 1 6 . 2 1 . 1 13 Power 3 | . . . . . . . 1 . . . 1 . 1 . . . . . . . . Propulsion 3 | . . . . . . . . . 1 1 . . . . 1 . . . . . . Utility 26 | . . . . . 2 1 1 1 2 3 1 2 . 1 3 . 2 1 . 1 5 Weapon 26 | . . 1 . 1 5 1 1 . 5 2 . 1 1 . 2 . . . . . 6 Tool/Special 2 | . . . . . . . . . . . . . . . . . . . . . 2 Average Slot Usage (%) 89 | . 100 99 99 88 88 81 86 100 100 94 87 67 92 85 87 82 89 100 100 93 79 Engine 6 | . 14 11 11 11 6 . 7 9 9 6 5 . 6 6 1 3 6 5 5 3 . Core 4 | . . . . . 4 3 5 9 9 5 4 7 5 . 2 5 3 5 5 5 1 Treads 11 | . 28 21 22 22 22 8 13 18 16 22 8 . . . . . . . . . . Leg 3 | . . . . . . . . . . 2 8 3 26 26 24 . . . . . 1 Hover 3 | . . . . . . . . . . . . 6 . . . 11 19 29 29 26 20 Device 12 | . 14 21 18 11 10 10 14 18 18 15 8 7 12 10 9 8 9 11 11 8 7 Storage 7 | . 14 11 11 11 11 9 9 9 9 6 6 6 6 7 4 . . 5 5 5 4 Processor 7 | . . . . . . . . . . 7 16 20 19 13 15 11 15 11 11 10 18 Hackware 1 | . . . . . . . . . . . . . . . 1 17 13 11 11 10 7 Protection 1 | . . . 3 . . 5 1 . . 2 . . 1 6 4 . . . . 4 3 Energy Gun 8 | . . 7 4 . . 1 18 26 27 13 2 4 . . . . . . . . . Energy Cannon 1 | . . . . . . . . . . . . . 6 6 3 . 2 11 11 7 2 Ballistic Gun 9 | . 28 25 28 33 33 33 14 9 6 . 2 1 . . 2 . . . . . . Slashing Weapon 3 | . . . . . . . . . 2 9 11 6 6 6 5 5 7 5 5 5 3 Peak Build Rating 138 | 7 9 25 24 22 24 46 45 45 52 74 73 75 96 94 113 105 123 121 121 131 138 Average Rating 56 | 5 7 22 22 14 17 38 39 44 48 61 64 55 84 91 97 92 103 120 121 123 112 On Entrance 60 | . 7 9 23 22 15 22 28 45 45 51 69 60 75 93 89 85 105 120 121 121 126 Avg Prop Armor Cover (%) 11 | . . . . . . 6 . . 9 7 11 8 . . 17 17 12 . . 2 8 Naked Turns . | . . . . . . . . . . . . . . . . . . . . . . Heaviest Build 97 | 14 29 35 34 60 63 65 67 67 68 91 43 46 83 83 97 18 42 42 42 45 68 Greatest Support 119 | 40 40 40 40 40 40 60 42 42 42 90 60 60 86 86 119 18 54 54 64 76 70 Greatest Overweight (x) 10 | 1 . 1 . 1 3 2 1 1 5 7 2 10 . . 1 . 1 . . . 7 Average Overweight (x) . | . . . . . 1 1 1 1 1 . . 1 . . . . . . . . . Largest Inventory Capacity 21 | 8 15 16 16 21 21 21 21 21 21 21 11 11 21 21 21 6 11 11 11 11 16 Average Capacity 16 | 7 11 15 16 17 21 21 21 21 21 20 11 11 16 21 19 6 6 11 11 11 15 Most Carried 21 | 2 10 16 16 20 21 21 21 21 21 21 11 11 21 21 21 6 8 11 11 11 16 Average Carried 15 | . 5 13 15 16 20 19 18 21 20 19 10 10 14 20 18 5 5 10 11 10 14 Final Capacity 21 | 8 15 16 16 21 21 21 21 21 21 11 11 11 21 21 6 6 11 11 11 11 16 Final Carried 21 | 1 9 16 15 20 21 17 21 21 21 11 11 11 21 21 6 5 8 11 11 11 14 Class Distribution -------------------- 17% | Commander-Gunner 17% | Gunner 14% | Mutant 11% | Hacker-Scout 10% | Scavenger-Mutant 7% | Scavenger-Gunner 4% | Scavenger-Tank 3% | Derelict-Mutant 3% | Scavenger-Gladiator Dominant Class ---------------- Mutant | -10/Materials Gunner | -9/Materials Scavenger-Gunner | -9/Mines Gunner | -9/Exiles Scavenger-Gunner | -8/Mines Gunner | -8/Materials Gunner | -8/Storage Gunner | -8/Recycling Commander-Gunner | -8/Scraptown Scavenger-Tank | -6/Factory Derelict-Gladiator | -6/Lower Caves Mutant | -6/Lower Caves Scavenger-Mutant | -6/Data Miner Scavenger-Mutant | -5/Proximity Caves Scavenger-Mutant | -5/Factory Hacker-Scout | -5/Waste Hacker-Scout | -5/Factory Hacker-Scout | -5/Upper Caves Hacker-Scout | -5/Upper Caves Hacker-Scout | -4/Factory Hacker-Scout | -3/Research Resources | -11 -10 -9 -9 -9 -8 -8 -8 -8 -8 -6 -6 -6 -6 -5 -5 -5 -5 -5 -5 -4 -3 ----------- Run | Yrd Mat Mat Min Exi Min Mat Sto Rec Scr Fac Low Low Dat Pro Fac Was Fac Upp Upp Fac Res Matter Collected 7602 | 292 84 449 136 289 907 853 362 89 6 285 247 675 301 568 412 297 603 10 . 179 558 Remotely . | . . . . . . . . . . . . . . . . . . . . . . Salvage Created 9013 | 127 150 454 268 . 512 319 394 275 . 786 735 373 21 56 567 36 1060 60 . 291 2529 Parts 459 | 9 7 39 14 . 27 33 23 14 . 30 21 18 4 3 35 1 40 1 . 24 116 Haulers Intercepted 12 | . 2 2 . . . . . . . 1 . . . . . . 3 . . 1 3 Recyclers Shooed 3 | . . . . . 2 . . . . . . . . . . . . . . . 1 Parts Field Recycled . | . . . . . . . . . . . . . . . . . . . . . . Retrieved Matter . | . . . . . . . . . . . . . . . . . . . . . . Parts Self-Destructed 32 | . . . . . . . . . . . 14 12 . 6 . . . . . . . Prevented . | . . . . . . . . . . . . . . . . . . . . . . Parts Restored . | . . . . . . . . . . . . . . . . . . . . . . Kills | -11 -10 -9 -9 -9 -8 -8 -8 -8 -8 -6 -6 -6 -6 -5 -5 -5 -5 -5 -5 -4 -3 ------- Run | Yrd Mat Mat Min Exi Min Mat Sto Rec Scr Fac Low Low Dat Pro Fac Was Fac Upp Upp Fac Res Combat Hostiles Destroyed 131 | . 3 8 9 . 8 11 10 4 . 9 18 8 . . 11 . 5 . . 6 21 Melee 53 | . . . . . . . . . . 9 10 8 . . 7 . 1 . . 2 16 Guns 46 | . 3 8 5 . 8 7 10 4 . . . . . . 1 . . . . . . Cannons 5 | . . . . . . . . . . . . . . . 1 . . . . . 4 AOE 26 | . . . 4 . . 4 . . . . 8 . . . 2 . 4 . . 4 . Classes Destroyed 17 | 2 3 3 1 . 1 3 . . . 1 1 . . 1 1 . . . . . . Worker 13 | . . . . . . 1 . . . . . . . . 1 . 2 . . . 9 Builder 5 | . . . . . . 1 . . . . . . . . . . 1 . . 1 2 Tunneler 9 | 2 . 1 . . 4 1 . . . . . . . . 1 . . . . . . Hauler 12 | . 2 2 . . . . . . . 1 . . . . . . 3 . . 1 3 Recycler 13 | 1 . . . . 1 . . 1 . 1 . . . . 1 . 4 . . . 4 Operator 1 | . . . . . . . . . . . . . . . 1 . . . . . . Drone 1 | . . . . . 1 . . . . . . . . . . . . . . . . Watcher 5 | . 1 2 . . . 1 . . . . . . . . . . 1 . . . . Swarmer 38 | . 3 3 3 . 1 5 4 1 . . 1 3 . . 6 . 4 . . 4 . Grunt 48 | . . 2 4 . 7 4 2 . . 5 10 2 . . . . 1 . . 2 9 Brawler 3 | . . . . . . . . . . . 2 1 . . . . . . . . . Duelist 3 | . . 1 1 . . . . . . . 1 . . . . . . . . . . Protector 1 | . . . 1 . . . . . . . . . . . . . . . . . . Sentry 13 | . . 2 . . . 1 4 3 . . 2 . . . . . . . . . 1 Hunter 10 | . . . . . . 1 . . . 3 2 . . . 2 . . . . . 2 Programmer 13 | . . . . . . . . . . 1 . 1 . . 3 . . . . . 8 Samaritan 2 | . . . . . . . . . . . . . . 1 . . . 1 . . . Wasp 1 | . . . . . . . . . . . . . . . . 1 . . . . . Thug 1 | . . . . . . . . . . . . 1 . . . . . . . . . Guerrilla 1 | . . . . . . . . . . . . . . . . . . . . . 1 Best Kill Streak 12 | 3 3 3 4 . 3 6 4 2 . 4 6 3 1 . 4 . 5 . . 4 12 Combat Bots Only 6 | . 3 3 4 . 3 5 4 1 . 4 6 3 . . 3 . 4 . . 4 5 Max Kills in Single Turn 4 | 1 1 1 2 . 1 3 2 1 . 1 4 1 1 1 4 1 4 1 . 4 2 Gunslinging 1 | . . . . . . 1 . . . . . . . . . . . . . . . Exploded 4 | . . . 2 . . 2 . . . . 4 . . . 2 . 4 . . 4 . Melee 2 | . . . . . . . . . . 1 1 1 . . 1 . 1 . . 1 2 Uniques/NPCs Destroyed 1 | . . . . . . . . . . . . . 1 . . . . . . . . Data Miner (-6/Data Miner) Combat | -11 -10 -9 -9 -9 -8 -8 -8 -8 -8 -6 -6 -6 -6 -5 -5 -5 -5 -5 -5 -4 -3 -------- Run | Yrd Mat Mat Min Exi Min Mat Sto Rec Scr Fac Low Low Dat Pro Fac Was Fac Upp Upp Fac Res Hostile Shots Fired 1125 | . 13 38 31 . 55 123 35 12 . 108 108 83 . 25 214 . 21 . 3 30 226 Missed 311 | . 2 5 6 . 19 31 9 5 . 29 26 34 . 9 53 . 9 . 1 9 64 Deflected 10 | . . . . . . . . . . . . . . . . . . . . . 10 Hits 814 | . 11 33 25 . 36 92 26 7 . 79 82 49 . 16 161 . 12 . 2 21 162 Melee 12 | . . 1 . . 3 . . . . 1 6 1 . . . . . . . . . Projectile 802 | . 11 32 25 . 33 92 26 7 . 78 76 48 . 16 161 . 12 . 2 21 162 AOE 2 | . . . . . . . . . . 1 . . . . 1 . . . . . . Critical Strikes 39 | . . 1 1 . . 2 1 . . 3 5 1 . 2 8 . . . . 2 13 Actively Blocked 12 | . . . . . . . . . . . . . . . . . . . . . 12 Part Disruptions 3 | . . . . . . . . . . 2 . . . . . . . . . . 1 Damage Taken 14540 | . 86 389 303 . 535 1262 405 83 . 1282 1312 941 . 337 3090 65 439 . 38 567 3406 Core 3384 | . . . 36 . 96 149 99 14 . 122 281 221 . 22 835 42 53 . 20 82 1312 Absorbed by Shields 194 | . . . . . . 56 . . . 126 12 . . . . . . . . . . Ignored by Resistances 168 | . . . . . . . . . . 85 . . . 10 . . . . . . 73 Regen/Repaired (Parts) 179 | . . . . . . . . . . . . . . . . 24 . . . 82 73 Core Remaining (%) 75 | 100 100 . . . 67 . . . 52 . . . . 80 . . . . 40 92 . Volleys Fired 236 | 6 19 32 19 . 52 23 28 10 . 6 9 4 4 4 15 . 3 . . 1 1 Largest 4 | 2 2 3 3 . 3 4 4 4 . 3 1 1 1 1 2 . 1 . . 1 1 Hottest 194 | 40 40 90 90 . 73 101 194 194 . 171 33 30 110 110 123 . 98 . . 49 94 Shots Fired 608 | 12 39 96 53 . 156 79 70 38 . 16 9 6 4 4 19 . 3 . . 1 3 Gun 566 | 12 39 96 51 . 156 75 70 38 . 16 3 6 . . 4 . . . . . . Cannon 28 | . . . . . . . . . . . . . 4 4 15 . 2 . . . 3 Launcher 13 | . . . 2 . . 4 . . . . 6 . . . . . . . . 1 . Special 1 | . . . . . . . . . . . . . . . . . 1 . . . . Kinetic 466 | 12 39 78 38 . 156 75 46 9 . 1 3 5 . . 4 . . . . . . Thermal 116 | . . 18 13 . . . 24 29 . 15 . 1 . . 15 . 1 . . . . Explosive 13 | . . . 2 . . 4 . . . . 6 . . . . . . . . 1 . Electromagnetic 12 | . . . . . . . . . . . . . 4 4 . . 1 . . . 3 Robot Hit Streak 12 | 4 6 10 9 . 9 7 12 4 . 9 3 1 2 . 2 . 2 . . . 4 Robot Miss Streak 6 | 2 3 5 3 . 5 3 4 5 . 3 3 4 . 4 6 . . . . . 1 Penetration Max 1 | . . . . . . . . . . . . . . . 1 . . . . . . Secondary Targets 7 | . . 2 1 . 1 2 1 . . . . . . . . . . . . . . Max Gunslinging Chain 2 | . . 1 1 . 1 2 1 . . . . . . . . . . . . . . Autonomous 11 | . . . . . . . . . . . . . . . . . 1 . 1 . 9 Shots Hit Robots 576 | 8 24 56 33 . 91 38 40 18 . 53 32 16 2 5 44 4 24 1 . 14 73 Core Hits 293 | 4 8 23 18 . 36 28 15 8 . 16 44 9 1 1 20 1 14 1 . 7 39 Critical Kills . | . . . . . . . . . . . . . . . . . . . . . . Critical Parts Destroyed . | . . . . . . . . . . . . . . . . . . . . . . Critical Strikes 18 | . . 1 2 . . . 1 . . 6 2 . . . 2 . . . . . 4 Burn 6 | . . 1 2 . . . 1 . . 2 . . . . . . . . . . . Sever 2 | . . . . . . . . . . 2 . . . . . . . . . . . Melee Attacks 344 | . . . . . . . 1 3 . 55 29 23 1 5 60 4 38 2 . 33 90 Impact 1 | . . . . . . . 1 . . . . . . . . . . . . . . Slashing 339 | . . . . . . . . . . 55 29 23 1 5 60 4 38 2 . 32 90 Piercing . | . . . . . . . . . . . . . . . . . . . . . . Sneak Attacks 62 | . . . . . . . . 3 . 10 3 . 1 3 5 4 12 1 . 5 15 Combat Hostiles 3 | . . . . . . . . . . 1 . . . 1 . . . . . 1 . Follow-up Attacks 5 | . . . . . . . . . . 4 . . . . . . . . . . 1 Damage Inflicted 23062 | 69 271 611 607 . 897 1021 623 299 . 2595 2149 653 92 351 2361 356 2320 132 108 1479 6068 Guns 3832 | 69 255 609 327 . 897 504 553 294 . 193 36 25 . . 70 . . . . . . Cannons 1187 | . . . . . . . . . . . . . 22 . 98 . 89 . 108 . 870 Explosions 3112 | . . . 280 . . 516 70 . . . 941 . . . 392 . 401 . . 478 34 Melee 14860 | . . . . . . . . . . 2402 1128 628 70 351 1801 356 1830 132 . 1001 5161 Ramming 27 | . 16 2 . . . 1 . 5 . . . . . . . . . . . . 3 Kinetic 2887 | 69 255 496 199 . 897 504 279 57 . . 36 25 . . 70 . . . . . . Thermal 1971 | . . 113 128 . . . 274 237 . 193 . . . . 490 . 401 . . 101 34 Explosive 2184 | . . . 280 . . 516 70 . . . 941 . . . . . . . . 377 . Electromagnetic 113 | . . . . . . . . . . . . . 22 . . . . . . . 91 Impact . | . . . . . . . . . . . . . . . . . . . . . . Slashing 14904 | . . . . . . . . . . 2402 1172 628 70 351 1801 356 1830 132 . 1001 5161 Piercing . | . . . . . . . . . . . . . . . . . . . . . . Phasic 976 | . . . . . . . . . . . . . . . . . 89 . 108 . 779 Highest Corruption 25 | . . . . . . . 3 3 . 1 1 10 . . 6 2 2 . . . 25 Average Corruption 4 | . . . . . . . 2 3 . 1 1 7 . . 3 2 2 . . . 17 Corruption Purged 6 | . . . . . . . . . . . . . . . 6 . . . . . . Corruption Blocked . | . . . . . . . . . . . . . . . . . . . . . . Effects 127 | . . . . . . . 11 29 . 3 6 29 . . 6 4 1 . . . 38 Message Errors 29 | . . . . . . . 3 9 . . . 6 . . 1 2 . . . . 8 Matter Fused 33 | . . . . . . . 4 8 . 2 2 6 . . 1 1 1 . . . 8 Heat Flow Errors 20 | . . . . . . . 1 3 . . 3 6 . . . 1 . . . . 6 Energy Discharges 11 | . . . . . . . . 1 . 1 . 3 . . 2 . . . . . 4 Parts Rejected 2 | . . . . . . . . . . . . 2 . . . . . . . . . Parts Fused 1 | . . . . . . . . . . . . . . . . . . . . . 1 Data Loss (minor) 9 | . . . . . . . 2 4 . . 1 1 . . 1 . . . . . . Data Loss (major) 4 | . . . . . . . . . . . . 3 . . . . . . . . 1 Misfires 4 | . . . . . . . . 1 . . . 2 . . . . . . . . 1 Alerts 5 | . . . . . . . . 3 . . . . . . 1 . . . . . 1 Misdirections 8 | . . . . . . . . . . . . . . . . . . . . . 8 Weapon Failures 1 | . . . . . . . 1 . . . . . . . . . . . . . . Overload Shots . | . . . . . . . . . . . . . . . . . . . . . . Overflow Damage 2284 | . . . 10 . . . 3 . . 187 90 16 . 77 164 11 458 . . 245 1023 Projectiles 160 | . . . . . . . . . . . 9 . . . . . . . . . 151 Explosions 298 | . . . 10 . . . 3 . . . . . . . 65 . 62 . . 158 . Melee 1826 | . . . . . . . . . . 187 81 16 . 77 99 11 396 . . 87 872 Knockbacks . | . . . . . . . . . . . . . . . . . . . . . . Impact . | . . . . . . . . . . . . . . . . . . . . . . Kinetic . | . . . . . . . . . . . . . . . . . . . . . . Secondary . | . . . . . . . . . . . . . . . . . . . . . . Self-Inflicted Damage 525 | . . . . . . 12 105 . . . . . . . 107 . 142 . . 159 . Shots 8 | . . . . . . 1 2 . . . . . . . 1 . 2 . . 2 . Rammed 11 | . 2 1 . . 1 1 2 2 . . . . . . . . . . . . 2 Targets Rammed 13 | . 3 1 . . 1 1 2 2 . . . . . . . . . . . . 3 Kicked 1 | . . . . . . . . . . . . . . . . . . . . . 1 Crushed 1 | . 1 . . . . . . . . . . . . . . . . . . . . Highest Temperature 333 | . 2 144 153 . 312 153 284 248 . 126 160 246 123 162 186 244 310 . 17 326 333 Average Temperature 77 | . 2 31 49 . 70 77 86 86 . 43 55 86 46 62 63 111 132 . 17 43 112 Received Heat Transfer 2424 | . . 129 66 . 294 402 117 18 . 358 405 174 . 98 48 9 57 . 18 51 180 Effects 10 | . . . . . . . . . . . . . . . . . . . . 3 7 Interference 9 | . . . . . . . . . . . . . . . . . . . . 3 6 Damage (minor) 1 | . . . . . . . . . . . . . . . . . . . . . 1 Siege Activations . | . . . . . . . . . . . . . . . . . . . . . . Martial Activations . | . . . . . . . . . . . . . . . . . . . . . . Shielding Activations . | . . . . . . . . . . . . . . . . . . . . . . Robots Disrupted 5 | . . . . . . . . . . 2 . . . . 3 . . . . . . Combat Hostiles 5 | . . . . . . . . . . 2 . . . . 3 . . . . . . Robots Corrupted . | . . . . . . . . . . . . . . . . . . . . . . Combat Hostiles . | . . . . . . . . . . . . . . . . . . . . . . Parts Fried 1 | . . . . . . . . . . 1 . . . . . . . . . . . Impact Corruptions . | . . . . . . . . . . . . . . . . . . . . . . Robots Melted 1 | . . . . . . . . . . 1 . . . . . . . . . . . Combat Hostiles . | . . . . . . . . . . . . . . . . . . . . . . Parts Melted 11 | . . 2 . . . 1 1 4 . 3 . . . . . . . . . . . Heat Transferred 3013 | . . 407 528 . . . 592 444 . 494 . . . . 250 . 148 . . 100 50 Parts Sabotaged . | . . . . . . . . . . . . . . . . . . . . . . Parts Stolen 1 | . . . . . . . . . . . 1 . . . . . . . . . . Parts Stripped 8 | . . . . . . . . . . . . . . . . . . . . . 8 Power Chain Reactions 1 | . . . . . . . . . . . . . . . . . . . . . 1 Alert | -11 -10 -9 -9 -9 -8 -8 -8 -8 -8 -6 -6 -6 -6 -5 -5 -5 -5 -5 -5 -4 -3 ------- Run | Yrd Mat Mat Min Exi Min Mat Sto Rec Scr Fac Low Low Dat Pro Fac Was Fac Upp Upp Fac Res Maximum Alert Level 2 | . . . 1 . . 1 1 . . . . . . . 2 . 1 . . 1 2 Low Security (%) 78 | 100 100 100 95 . 100 17 22 100 . 100 . . . . 30 100 69 . . 63 42 Level 1 18 | . . . 4 . . 82 77 . . . . . . . 45 . 30 . . 36 48 Level 2 3 | . . . . . . . . . . . . . . . 23 . . . . . 8 Level 3 . | . . . . . . . . . . . . . . . . . . . . . . Level 4 . | . . . . . . . . . . . . . . . . . . . . . . Level 5 . | . . . . . . . . . . . . . . . . . . . . . . High Security . | . . . . . . . . . . . . . . . . . . . . . . Max Security . | . . . . . . . . . . . . . . . . . . . . . . Peak Influence 505 | 10 188 141 217 . 70 341 285 113 . 135 . . . . 505 199 239 . . 265 483 Initial 300 | . . 76 4 . . 13 118 85 . . . . . . 300 165 97 . . 39 120 Average 102 | 1 19 75 137 . 17 231 216 34 . 24 . . . . 272 165 102 . . 96 225 Influence Increases 6679 | 15 344 233 419 . 276 428 369 243 . 315 404 385 30 170 1041 84 686 . . 373 864 Destroy 0b10 Robot/C 3060 | . 60 160 280 . 200 220 200 80 . 180 380 200 20 100 220 . 220 . . 120 420 Destroy 0b10 Robot/NC 305 | 15 15 25 5 . 25 20 . 5 . 10 . . . 10 20 . 55 . . 10 90 Destroy Leader 524 | . 16 48 50 . 30 42 50 . . 42 20 20 . 10 50 . 48 . . 22 76 Allied During Kill 137 | . . . 41 . 6 . . . . 1 4 30 10 35 . . 10 . . . . Successful Hack 141 | . 20 . . . . . 12 8 . 16 . . . . . . 46 . . . 39 Select Force Hacks 150 | . . . . . . . . 150 . . . . . . . . . . . . . Disable Machine 360 | . . . 15 . . . 75 . . . . . . . 90 . 105 . . 60 15 Destroy Structure 428 | . . . 13 . . . 17 . . 6 . . . . 68 84 112 . . 116 12 Advance Influence 300 | . . . . . . . . . . . . . . . 300 . . . . . . Partial Spotted 30 | . . . . . . . . . . . . . . . . . 15 . . . 15 Lose Combat Pursuer 480 | . 45 . 15 . 15 . 15 . . 60 . 135 . 15 45 . 75 . . 45 15 Miscellaneous 764 | . 188 . . . . 146 . . . . . . . . 248 . . . . . 182 Influence Decreases 6245 | 15 162 404 329 101 242 181 429 464 . 195 508 332 99 170 568 418 586 159 16 208 659 Entered New Map 1241 | . . 106 7 101 . 21 163 136 . . 45 4 69 . . 308 42 89 16 25 109 Time Decay 3824 | 15 162 278 272 . 242 70 246 328 . 143 355 308 10 100 398 80 304 70 . 133 310 Lost Part 837 | . . 20 30 . . 90 20 . . 42 95 20 . 10 170 10 40 . . 50 240 Lost Ally 343 | . . . 20 . . . . . . 10 13 . 20 60 . 20 200 . . . . Squads Dispatched 33 | . . . 1 . 1 3 1 . . 7 . . . . 4 . 6 . . 5 5 Investigation 16 | . . . . . 1 1 . . . 5 . . . . 1 . 4 . . 2 2 Extermination 9 | . . . . . . . . . . 2 . . . . 3 . 1 . . 1 2 Reinforcement 7 | . . . . . . 2 1 . . . . . . . . . 1 . . 2 1 Assault 1 | . . . 1 . . . . . . . . . . . . . . . . . . Garrison . | . . . . . . . . . . . . . . . . . . . . . . Intercept . | . . . . . . . . . . . . . . . . . . . . . . Searches Triggered . | . . . . . . . . . . . . . . . . . . . . . . Construction Impeded . | . . . . . . . . . . . . . . . . . . . . . . Haulers Reinforced 3 | . . . . . . . . . . . . . . . . . 1 . . 1 1 Active Scanning Responses . | . . . . . . . . . . . . . . . . . . . . . . Cargo Convoy Interrupts . | . . . . . . . . . . . . . . . . . . . . . . Stealth | -11 -10 -9 -9 -9 -8 -8 -8 -8 -8 -6 -6 -6 -6 -5 -5 -5 -5 -5 -5 -4 -3 --------- Run | Yrd Mat Mat Min Exi Min Mat Sto Rec Scr Fac Low Low Dat Pro Fac Was Fac Upp Upp Fac Res Distress Signals 13 | . 1 2 . . . 1 2 . . 1 . . . . 2 . 3 . . 1 . Communications Jammed 16 | . . . . . . . . . . . . . . . 16 . . . . . . Distress Signals 16 | . . . . . . . . . . . . . . . 16 . . . . . . Times Spotted 266 | . 11 14 16 . 10 22 17 2 . 17 19 19 4 8 26 9 22 . 4 19 27 Peak Tracking Total 9 | . 3 6 5 . 3 8 6 1 . 4 9 4 3 2 7 5 7 . 6 8 5 Tactical Retreats 24 | . 2 . 1 . 1 . 1 . . 4 . 4 . 1 3 1 3 . . 2 1 Traps | -11 -10 -9 -9 -9 -8 -8 -8 -8 -8 -6 -6 -6 -6 -5 -5 -5 -5 -5 -5 -4 -3 ------- Run | Yrd Mat Mat Min Exi Min Mat Sto Rec Scr Fac Low Low Dat Pro Fac Was Fac Upp Upp Fac Res Traps Triggered 7 | . 1 . . . . . 2 . . . . . . . 2 . 1 . . . 1 Indirectly . | . . . . . . . . . . . . . . . . . . . . . . Trap Hack Attempts . | . . . . . . . . . . . . . . . . . . . . . . Triggered . | . . . . . . . . . . . . . . . . . . . . . . Disarmed . | . . . . . . . . . . . . . . . . . . . . . . Reprogrammed . | . . . . . . . . . . . . . . . . . . . . . . Reused . | . . . . . . . . . . . . . . . . . . . . . . Traps Extracted . | . . . . . . . . . . . . . . . . . . . . . . Installed . | . . . . . . . . . . . . . . . . . . . . . . Triggered . | . . . . . . . . . . . . . . . . . . . . . . Most Traps Carried 1 | . . . . . . . . . 1 1 . . . . . . . . . . . Machines | -11 -10 -9 -9 -9 -8 -8 -8 -8 -8 -6 -6 -6 -6 -5 -5 -5 -5 -5 -5 -4 -3 ---------- Run | Yrd Mat Mat Min Exi Min Mat Sto Rec Scr Fac Low Low Dat Pro Fac Was Fac Upp Upp Fac Res Machines Disabled 26 | . . . 1 . . . 5 . . . 1 . 1 . 6 . 7 . . 4 1 Max in Single Turn 4 | . . . . . . . 2 . . . 1 . . . 2 . 3 . . 4 1 Garrison Access 2 | . . . . . . . . . . . . . . . . . 1 . . 1 . Machines Repaired . | . . . . . . . . . . . . . . . . . . . . . . Machines Dismantled . | . . . . . . . . . . . . . . . . . . . . . . Machines Sabotaged . | . . . . . . . . . . . . . . . . . . . . . . Overloaded Fab Kills . | . . . . . . . . . . . . . . . . . . . . . . Hacking | -11 -10 -9 -9 -9 -8 -8 -8 -8 -8 -6 -6 -6 -6 -5 -5 -5 -5 -5 -5 -4 -3 --------- Run | Yrd Mat Mat Min Exi Min Mat Sto Rec Scr Fac Low Low Dat Pro Fac Was Fac Upp Upp Fac Res Machines Accessed 60 | . 3 3 . 1 . . 5 9 5 5 . 1 3 . 2 . 9 1 . 7 6 Terminals 24 | . 3 3 . . . . 5 4 . 2 . . . . 1 . 2 . . 2 2 Fabricators 3 | . . . . . . . . . . . . . . . . . 1 . . 1 1 Repair Stations 3 | . . . . . . . . . . . . . . . . . 1 . . 1 1 Recycling Units 14 | . . . . . . . . 5 . 3 . . . . 1 . 3 . . 1 1 Scanalyzers 3 | . . . . . . . . . . . . . . . . . 1 . . 1 1 Garrison Access 2 | . . . . . . . . . . . . . . . . . 1 . . 1 . Total Hacks 168 | . 6 5 . 1 . . 15 13 20 11 . 1 25 . 3 . 18 1 . 25 24 Successful 110 | . 4 . . 1 . . 8 8 20 4 . 1 25 . 2 . 9 1 . 12 15 Failed 53 | . 1 5 . . . . 6 4 . 7 . . . . 1 . 9 . . 12 8 Catastrophic 8 | . . 3 . . . . . . . 2 . . . . . . 1 . . 1 1 Database Lockouts 5 | . 1 . . . . . 1 1 . . . . . . . . . . . 1 1 Manual 58 | . 6 5 . . . . 6 13 . 6 . . . . 3 . 4 . . 8 7 Terminals 59 | . 6 5 . . . . 15 8 . 5 . . . . 2 . 7 . . 4 7 Fabricators 13 | . . . . . . . . . . . . . . . . . 1 . . 8 4 Repair Stations 3 | . . . . . . . . . . . . . . . . . 1 . . 1 1 Recycling Units 19 | . . . . . . . . 5 . 6 . . . . 1 . 4 . . 2 1 Scanalyzers 22 | . . . . . . . . . . . . . . . . . 3 . . 8 11 Garrison Access 4 | . . . . . . . . . . . . . . . . . 2 . . 2 . Terminal Hacks 64 | . 3 . . 1 . . 8 2 20 1 . 1 25 . . . . 1 . 1 1 Record 18 | . . . . 1 . . . . 11 . . . 6 . . . . . . . . Part Schematic 12 | . . . . . . . . . . . . . 12 . . . . . . . . Robot Schematic 6 | . 1 . . . . . . 1 . . . . 4 . . . . . . . . Robot Analysis 10 | . . . . . . . 1 1 7 . . . . . . . . . . . 1 Prototype ID Bank 6 | . 2 . . . . . 1 . . . . . 3 . . . . . . . . Open Door 6 | . . . . . . . 3 . 1 . . 1 . . . . . 1 . . . Branch Access Points 1 | . . . . . . . . . . 1 . . . . . . . . . . . Locate Traps 1 | . . . . . . . 1 . . . . . . . . . . . . . . Zone Layout 3 | . . . . . . . 2 . . . . . . . . . . . . 1 . Proto ID Catalog 1 | . . . . . . . . . 1 . . . . . . . . . . . . Fabricator Hacks 3 | . . . . . . . . . . . . . . . . . . . . 2 1 Network Status 2 | . . . . . . . . . . . . . . . . . . . . 1 1 Load Schematic 1 | . . . . . . . . . . . . . . . . . . . . 1 . Repair Station Hacks 1 | . . . . . . . . . . . . . . . . . 1 . . . . Refit 1 | . . . . . . . . . . . . . . . . . 1 . . . . Recycling Unit Hacks 1 | . . . . . . . . . . . . . . . . . 1 . . . . Retrieve Components 1 | . . . . . . . . . . . . . . . . . 1 . . . . Scanalyzer 17 | . . . . . . . . . . . . . . . . . 3 . . 5 9 Insert Component 5 | . . . . . . . . . . . . . . . . . . . . 2 3 Analyze 5 | . . . . . . . . . . . . . . . . . . . . 2 3 Retrieve Study 7 | . . . . . . . . . . . . . . . . . 3 . . 1 3 Garrison Access Hacks 2 | . . . . . . . . . . . . . . . . . 1 . . 1 . Seal Access 2 | . . . . . . . . . . . . . . . . . 1 . . 1 . Unauthorized Hacks 22 | . 1 . . . . . . 6 . 3 . . . . 2 . 3 . . 3 4 Terminals 4 | . 1 . . . . . . 1 . . . . . . 1 . . . . . 1 Botnet 3 | . 1 . . . . . . . . . . . . . 1 . . . . . 1 Detonate 1 | . . . . . . . . 1 . . . . . . . . . . . . . Fabricators 2 | . . . . . . . . . . . . . . . . . . . . 1 1 Haulers 2 | . . . . . . . . . . . . . . . . . . . . 1 1 Repair Stations 2 | . . . . . . . . . . . . . . . . . . . . 1 1 Patch 2 | . . . . . . . . . . . . . . . . . . . . 1 1 Recycling Units 14 | . . . . . . . . 5 . 3 . . . . 1 . 3 . . 1 1 Tunnel 5 | . . . . . . . . 5 . . . . . . . . . . . . . Fedlink 9 | . . . . . . . . . . 3 . . . . 1 . 3 . . 1 1 Scanalyzers . | . . . . . . . . . . . . . . . . . . . . . . Garrison Access . | . . . . . . . . . . . . . . . . . . . . . . Data Cores Recovered . | . . . . . . . . . . . . . . . . . . . . . . Used . | . . . . . . . . . . . . . . . . . . . . . . Hacking Detections 24 | . 2 3 . . . . 3 3 . 3 . . . . 1 . 4 . . 1 4 Full Trace Events 2 | . . . . . . . . . . 2 . . . . . . . . . . . Feedback Events . | . . . . . . . . . . . . . . . . . . . . . . Feedback Blocked . | . . . . . . . . . . . . . . . . . . . . . . Robot Schematics Acquired 6 | . 1 . . . . . . 1 . . . . 4 . . . . . . . . Robots Built . | . . . . . . . . . . . . . . . . . . . . . . Authchips . | . . . . . . . . . . . . . . . . . . . . . . Time . | . . . . . . . . . . . . . . . . . . . . . . Total Robot Build Rating . | . . . . . . . . . . . . . . . . . . . . . . Part Schematics Acquired 14 | . . . . . . . . . . . . . 12 . . . . . . 1 1 Parts Built . | . . . . . . . . . . . . . . . . . . . . . . Authchips . | . . . . . . . . . . . . . . . . . . . . . . Time . | . . . . . . . . . . . . . . . . . . . . . . Total Part Build Rating . | . . . . . . . . . . . . . . . . . . . . . . Part Studies Acquired 7 | . . . . . . . . . . . . . . . . . 3 . . 1 3 Parts Repaired . | . . . . . . . . . . . . . . . . . . . . . . Time . | . . . . . . . . . . . . . . . . . . . . . . Parts Recycled . | . . . . . . . . . . . . . . . . . . . . . . Recycled Matter . | . . . . . . . . . . . . . . . . . . . . . . Retrieved Matter . | . . . . . . . . . . . . . . . . . . . . . . Retrieved Components 8 | . . . . . . . . . . . . . . . . . 8 . . . . Parts Scanalyzed 3 | . . . . . . . . . . . . . . . . . . . . 1 2 Part Schematics Acquired 2 | . . . . . . . . . . . . . . . . . . . . 1 1 Parts Damaged 1 | . . . . . . . . . . . . . . . . . . . . . 1 Bothacking | -11 -10 -9 -9 -9 -8 -8 -8 -8 -8 -6 -6 -6 -6 -5 -5 -5 -5 -5 -5 -4 -3 ------------ Run | Yrd Mat Mat Min Exi Min Mat Sto Rec Scr Fac Low Low Dat Pro Fac Was Fac Upp Upp Fac Res Used RIF Installer . | . . . . . . . . . . . . . . . . . . . . . . Robots Hacked 2 | . . . . . . . . . . . . . . . . . 1 . . 1 . Non-combat 2 | . . . . . . . . . . . . . . . . . 1 . . 1 . Combat . | . . . . . . . . . . . . . . . . . . . . . . Robot Hacks Applied 2 | . . . . . . . . . . . . . . . . . 1 . . 1 . find_recycling 2 | . . . . . . . . . . . . . . . . . 1 . . 1 . Relay Couplers Released . | . . . . . . . . . . . . . . . . . . . . . . Fabnet Peak Effective % . | . . . . . . . . . . . . . . . . . . . . . . Robots Rewired 6 | . . . . . . . . 5 . . 1 . . . . . . . . . . Allies Hacked . | . . . . . . . . . . . . . . . . . . . . . . Hacks Repelled . | . . . . . . . . . . . . . . . . . . . . . . Allies | -11 -10 -9 -9 -9 -8 -8 -8 -8 -8 -6 -6 -6 -6 -5 -5 -5 -5 -5 -5 -4 -3 -------- Run | Yrd Mat Mat Min Exi Min Mat Sto Rec Scr Fac Low Low Dat Pro Fac Was Fac Upp Upp Fac Res Total Allies 37 | . . . 4 . . . . 5 . . 1 5 . . . 19 3 . . . . Largest Group 18 | . . . 3 3 2 . . 5 5 4 1 5 5 4 . 18 11 . . . . Highest-Rated Group 672 | . . . 55 55 24 . . 73 73 63 32 238 235 188 . 672 473 . . . . Highest-Rated Ally 50 | . . . 31 31 16 . . 27 27 27 32 50 47 47 . 50 50 . . . . Initial UFD Resources 74 | . . . . . . . . . . 23 39 39 39 41 41 51 51 59 59 62 74 Total Orders . | . . . . . . . . . . . . . . . . . . . . . . Ally Attacks 327 | . . . 38 . 32 . . . . 16 4 21 37 33 . 104 42 . . . . Total Damage 9773 | . . . 352 . 245 . . . . 99 144 566 620 732 . 6000 1015 . . . . Kills 40 | . . . 6 . 2 . . . . . 1 2 4 7 . 12 6 . . . . Allies Corrupted . | . . . . . . . . . . . . . . . . . . . . . . Allies Melted . | . . . . . . . . . . . . . . . . . . . . . . X0-1V1 Amusement Gains 297 | . 3 5 . . . 10 5 20 . 10 . . 95 . 55 14 . . . 20 60 Good Acts 86 | . 3 2 2 . 5 8 2 2 . 1 3 16 . . 3 5 19 3 . 6 6 Bad Acts 96 | . 2 2 3 . 6 20 5 1 . 5 4 5 . 1 14 5 5 2 1 3 12 Intel | -11 -10 -9 -9 -9 -8 -8 -8 -8 -8 -6 -6 -6 -6 -5 -5 -5 -5 -5 -5 -4 -3 ------- Run | Yrd Mat Mat Min Exi Min Mat Sto Rec Scr Fac Low Low Dat Pro Fac Was Fac Upp Upp Fac Res Active Infowar (turns) 8593 | 17 876 569 431 . . 1 . . . 774 631 1894 276 245 958 161 709 144 3 430 474 Optics 5702 | . . . . . . . . . . . 408 1894 276 245 958 161 709 144 3 430 474 Sensors 1138 | . . . . . . . . . . . . . . . 26 84 610 144 3 271 . IFF 223 | . . . . . . . . . . . 223 . . . . . . . . . . Terrain 678 | . . . . . . . . . . . . . . . 413 . . . . . 265 Seismic 2668 | 17 876 569 431 . . 1 . . . 774 . . . . . . . . . . . Jamming 125 | . . . . . . . . . . . . . . . 125 . . . . . . Robot Analysis Total 10 | . . . . . . . 1 1 7 . . . . . . . . . . . 1 Derelict Logs Recovered 4 | . . . 1 . . . . . . . 1 . . 1 . . . 1 . . . Drone Launches . | . . . . . . . . . . . . . . . . . . . . . . Drone Recoveries . | . . . . . . . . . . . . . . . . . . . . . . Exploration | -11 -10 -9 -9 -9 -8 -8 -8 -8 -8 -6 -6 -6 -6 -5 -5 -5 -5 -5 -5 -4 -3 ------------- Run | Yrd Mat Mat Min Exi Min Mat Sto Rec Scr Fac Low Low Dat Pro Fac Was Fac Upp Upp Fac Res Turns Passed 14873 | 98 876 603 616 341 954 156 521 1343 1958 1042 864 1894 276 245 958 161 709 144 3 430 681 Spaces Moved 9494 | 43 496 281 339 183 320 46 190 531 868 530 518 922 185 183 717 329 1350 312 10 571 570 Core 112 | 5 . . . . . . . . . . . 103 . . . . . . . . 4 Treads 3742 | 38 496 281 339 183 320 5 145 531 702 454 248 . . . . . . . . . . Legs 1388 | . . . . . . . . . . 47 151 261 185 183 523 . . . . . 38 Wheels 428 | . . . . . . 41 45 . 166 29 119 28 . . . . . . . . . Hover 2688 | . . . . . . . . . . . . 530 . . 3 . 734 312 10 571 528 Flight 1136 | . . . . . . . . . . . . . . . 191 329 616 . . . . Fastest Speed 27 | 50 160 160 160 160 240 115 115 232 165 120 115 55 120 120 32 30 30 38 28 27 36 Average Speed 127 | 149 160 161 160 173 240 129 204 232 222 157 138 181 120 120 97 31 37 38 30 37 50 Slowest Speed 550 | 160 160 240 160 240 400 160 232 232 237 243 190 550 120 120 190 32 100 38 38 38 400 Overloaded Moves 12 | . . . . . . . . . . . . . . . . . . . 8 4 . Propulsion Burnouts . | . . . . . . . . . . . . . . . . . . . . . . Robots Hopped 4 | . . . . . . . . . . . . . . . 1 2 1 . . . . Potential Cave-ins 7 | . . . . . . . . . . . . . 1 . . . . . . . 6 Cave-ins Triggered 1 | . . . . . . . . . . . . . . . . . . . . . 1 Exploration Rate (%) 49 | 4 74 30 74 49 74 12 41 95 70 14 73 80 83 47 26 96 34 58 5 22 17 Regions Visited 21 Branch Regions 12 Pre-discovered Areas 9 | . . . . 1 . . 1 5 . 1 . . 1 . . . . . . . . Known Exits Taken 6 | . . . . . . . . . . 1 . . . 1 . . 1 1 1 1 . Unknown Exits Taken 13 | 1 1 1 1 1 1 1 1 1 1 . 1 1 1 . . . . . . . . Scrap Searched 16 | . . . 1 . 1 . . . 3 . 4 2 . 4 . . . 1 . . . Spaces Dug 99 | . . . . . . . . . . 6 . 4 . . 11 . 12 1 . 65 . Terrain Destroyed 242 | . . . 13 . . . 17 . . 6 44 4 . . 33 . 53 1 . 65 6 Melee 40 | . . . . . . . . . . 6 . 4 . . 4 . 11 1 . 14 . Projectile 11 | . . . . . . . . . . . . . . . 10 . 1 . . . . AOE 191 | . . . 13 . . . 17 . . . 44 . . . 19 . 41 . . 51 6 Terrain Rammed . | . . . . . . . . . . . . . . . . . . . . . . Walls Destroyed . | . . . . . . . . . . . . . . . . . . . . . . Machines Disabled . | . . . . . . . . . . . . . . . . . . . . . . Actions | -11 -10 -9 -9 -9 -8 -8 -8 -8 -8 -6 -6 -6 -6 -5 -5 -5 -5 -5 -5 -4 -3 --------- Run | Yrd Mat Mat Min Exi Min Mat Sto Rec Scr Fac Low Low Dat Pro Fac Was Fac Upp Upp Fac Res Total 11349 | 64 542 369 378 209 424 101 269 620 898 649 612 1103 237 198 876 378 1500 334 9 738 841 Wait 694 | 6 14 27 6 14 15 7 20 1 5 12 28 122 6 2 40 43 68 16 . 111 131 Move 9466 | 42 495 280 338 182 319 45 189 530 867 529 517 921 184 182 715 325 1347 311 9 570 569 Hop 3 | . . . . . . . . . . . . . . . 1 1 1 . . . . Pick Up 138 | 2 8 12 5 4 6 6 9 2 9 14 5 8 13 1 8 . 8 4 . 3 11 Fast Attach 120 | 6 1 2 . 1 4 3 8 1 1 10 11 10 6 1 11 3 14 . . 9 18 Attach 72 | 1 . 6 3 1 7 7 4 . 1 11 4 2 3 1 11 1 2 . . 2 5 Detach 21 | . . 1 . 1 3 1 1 1 2 1 1 1 3 1 2 . 1 . . 1 . Swap 46 | 1 1 3 4 2 3 2 2 2 2 3 3 2 4 . 3 . 3 . . 2 4 Drop 136 | . 1 5 3 4 14 6 5 4 11 13 4 10 13 1 10 1 15 1 . 6 9 Fire 236 | 6 19 32 19 . 52 23 28 10 . 6 9 4 4 4 15 . 3 . . 1 1 Melee 337 | . . . . . . . 1 3 . 50 28 23 1 5 60 4 38 2 . 33 89 Ram 4 | . . . . . . . 2 . . . . . . . . . . . . . 2 Kick 1 | . . . . . . . . . . . . . . . . . . . . . 1 Crush 8 | . 3 1 . . 1 1 . 2 . . . . . . . . . . . . . Escape Stasis 1 | . . . . . . . . . . . . . . . . . . . . . 1 Rewire 66 | . . . . . . . . 64 . . 2 . . . . . . . . . . Trap . | . . . . . . . . . . . . . . . . . . . . . . Miscellaneous . | . . . . . . . . . . . . . . . . . . . . . . Route ------- -11/Scrapyard -10/Materials (discovered 4 exits: *Mat x2 / [*Min] / [*Sub]) -9/Materials -9/Mines (discovered 4 exits: [*Mat x2] / *Exi / [*Zio]) -9/Exiles -8/Mines -8/Materials -8/Storage (discovered 2 exits: Fac / *Rec) -8/Recycling (discovered 2 exits: *Fac / *Scr) -8/Scraptown -6/Factory (discovered 4 exits: *Low x2 / Ext x2) -6/Lower Caves -6/Lower Caves (discovered 2 exits: Fac / *Dat) -6/Data Miner -5/Proximity Caves -5/Factory (discovered 3 exits: *Fac / *Upp x2) -5/Waste -5/Factory (discovered 6 exits: Fac x4 / *Upp x2) -5/Upper Caves (discovered 2 exits: *Upp / *War) -5/Upper Caves -4/Factory (discovered 2 exits: *Res x2) -3/Research (discovered 2 exits: [*Res] / Qua) History --------- Turn | Location | Event 19 | -11/Scrapyard | Discovered new exit (range 15) 99 | -11/Scrapyard | Entered Materials 171 | -10/Materials | Central database locked down 311 | -10/Materials | Build established: Mutant 495 | -10/Materials | Discovered new exit (range 10) 524 | -10/Materials | Discovered new exit (range 7) 717 | -10/Materials | Discovered new exit (range 15) 782 | -10/Materials | Discovered new exit (range 16) 842 | -10/Materials | Prayed at D.C.S.S. Altar Unit 846 | -10/Materials | Core integrity permanently improved by X0-1V1 (+200) 945 | -10/Materials | Matter capacity permanently improved by X0-1V1 (+200; -100 max core) 950 | -10/Materials | X0-1V1 activates XOMVISION 951 | -10/Materials | X0-1V1 added 0b10 threat records associated with you (considerable) 975 | -10/Materials | Entered another Materials area 975 | -9/Materials | Evolved 2 slots: Utility x1, Weapon x1 1283 | -9/Materials | Build established: Gunner 1439 | -9/Materials | Inventory capacity permanently improved by X0-1V1 (+1; -100 max core) 1532 | -9/Materials | Discovered new exit (range 12) 1578 | -9/Materials | Entered Mines 1580 | -9/Mines | Assisted by bots powering up and referring to "LRC-V3" 1847 | -9/Mines | Discovered new exit (range 7) 1899 | -9/Mines | A Derelict revealed a hidden shortcut to a safe place 1952 | -9/Mines | Discovered new exit (range 10) 1954 | -9/Mines | Received a Rocket Launcher from a helpful Derelict 2103 | -9/Mines | Found a Scrap Suit stashed away for nefarious purposes 2119 | -9/Mines | Learned Materials garrison access intel 2170 | -9/Mines | Received a Mining Laser from a helpful Derelict 2186 | -9/Mines | Deemed a non-threat by the Exiles lab entrance 2186 | -9/Mines | Discovered new exit (range 5) 2194 | -9/Mines | Entered Exiles 2194 | -9/Exiles | Accompanied by 3 allies 2271 | -9/Exiles | Met 8R-AWN 2309 | -9/Exiles | Met EX-HEX 2386 | -9/Exiles | Met EX-DEC 2394 | -9/Exiles | Learned location of Zion (-7) 2498 | -9/Exiles | Discovered new exit (range 14) 2535 | -9/Exiles | Entered Mines 2535 | -8/Mines | Accompanied by 2 allies 2656 | -8/Mines | Reactive Plating reconfigured into Item Mimic 3204 | -8/Mines | X0-1V1 activates XOMVISION 3219 | -8/Mines | Build established: Scavenger-Gunner 3463 | -8/Mines | X0-1V1 mutated your Utility slot to Weapon slot 3475 | -8/Mines | Discovered new exit (range 7) 3489 | -8/Mines | Entered Materials 3489 | -8/Materials | Evolved 2 slots: Propulsion x1, Utility x1 3490 | -8/Materials | Loaded intel: 1 garrison access location 3492 | -8/Materials | X0-1V1 foreshadows a heat wave 3493 | -8/Materials | X0-1V1 sent you to a vault 3503 | -8/Materials | Discovered new exit (range 8) 3517 | -8/Materials | X0-1V1 added 0b10 threat records associated with you (minor) 3519 | -8/Materials | X0-1V1 enhanced Transport squad support 3520 | -8/Materials | X0-1V1 announced a LAN party 3537 | -8/Materials | X0-1V1 activates XOMVISION 3554 | -8/Materials | X0-1V1 mutated your Propulsion slot to Power slot 3559 | -8/Materials | X0-1V1 sent hostile S-10 Pest (x3) 3599 | -8/Materials | X0-1V1 upgraded hostiles (x1) 3608 | -8/Materials | Ambient heat levels rising (+10) 3612 | -8/Materials | X0-1V1 vaporized surrounding terrain (radius 20) 3645 | -8/Materials | Entered Storage 3674 | -8/Storage | Lost 9 parts (2p2u5w) 3732 | -8/Storage | X0-1V1 redirected Transport squads to designated parking area 3881 | -8/Storage | X0-1V1 sent someone to clean up after you 4012 | -8/Storage | Central database locked down 4054 | -8/Storage | Build established: Gunner 4102 | -8/Storage | Learned location of Armory (-3) 4131 | -8/Storage | Identified exit to Factory 4131 | -8/Storage | X0-1V1 revealed exit location to -7/Factory 4156 | -8/Storage | Used back door to open Recycling access 4156 | -8/Storage | Discovered new exit (range 5) 4166 | -8/Storage | Entered Recycling 4975 | -8/Recycling | Discovered new exit (range 13) 5182 | -8/Recycling | Build established: Commander-Gunner 5451 | -8/Recycling | Scanned before Scraplab entrance 5486 | -8/Recycling | Entered Scraplab 5504 | -8/Recycling | Discovered new exit (range 2) 5509 | -8/Recycling | Entered Scraptown 5509 | -8/Scraptown | Accompanied by 5 allies 5509 | -8/Scraptown | System corruption cleaned by C-Scrubber 6133 | -8/Scraptown | Visited The Evicted 6166 | -8/Scraptown | Visited Awakened 6183 | -8/Scraptown | Visited Cyclists 6216 | -8/Scraptown | Visited Comm Corps 6328 | -8/Scraptown | Visited UFD Registry 6328 | -8/Scraptown | Registered with UFD as "Protopod" 6361 | -8/Scraptown | Visited CPS Storage 6375 | -8/Scraptown | Visited TADAMA 6389 | -8/Scraptown | Visited SPCMW 6517 | -8/Scraptown | Visited Science Guys 6602 | -8/Scraptown | Visited LU-1G1's Boring Crew 6635 | -8/Scraptown | Visited Derelict Rescue Squad 6687 | -8/Scraptown | Visited Analyses Database 6737 | -8/Scraptown | Visited Scrap Suit Storage 6803 | -8/Scraptown | Visited Junk Repository 6876 | -8/Scraptown | Visited Scrapoid Pod Storage 6914 | -8/Scraptown | Visited Abandonware Association 6937 | -8/Scraptown | Learned abandonware demo "HACKBUD.EXE" 7001 | -8/Scraptown | Visited Sword Containment 7026 | -8/Scraptown | Found Prototype Slashing Weapon 7026 | -8/Scraptown | Identified Companion Sword 7127 | -8/Scraptown | Found Scrapoid Pod 7213 | -8/Scraptown | Visited Science Testing Area 7369 | -8/Scraptown | Met Optimus 7369 | -8/Scraptown | Accepted into 0bPrime 7454 | -8/Scraptown | Discovered new exit (range 5) 7467 | -8/Scraptown | Entered Factory 7467 | -6/Factory | Accompanied by 4 allies 7467 | -6/Factory | Evolved 4 slots: Propulsion x2, Utility x2 7610 | -6/Factory | Loaded intel: 8 recycling unit locations 7636 | -6/Factory | Learned location of Protoforge (-2) 7775 | -6/Factory | Build established: Scavenger-Tank 7937 | -6/Factory | Discovered new exit (range 10) 8056 | -6/Factory | X0-1V1 redirected Transport squads to designated parking area 8111 | -6/Factory | Identified exit to Lower Caves 8111 | -6/Factory | Identified exit to Extension 8284 | -6/Factory | Lost 3 parts (1p2u) 8444 | -6/Factory | Adv. Beam Rifle reconfigured into Item Mimic 8509 | -6/Factory | Entered Lower Caves 8586 | -6/Lower Caves | Attracted the attention of an 0b10 checkpoint 8650 | -6/Lower Caves | Learned 4 Factory zone layouts 8668 | -6/Lower Caves | Found DCF Scrap (15 items) 8714 | -6/Lower Caves | Sensors blinded by X0-1V1 8732 | -6/Lower Caves | X0-1V1 sent you into danger 8733 | -6/Lower Caves | Attracted the attention of an 0b10 outpost 8772 | -6/Lower Caves | Lost 4 parts (1p2n1u) 9144 | -6/Lower Caves | X0-1V1 activates XOMVISION 9209 | -6/Lower Caves | X0-1V1 mutated your Weapon slot to Utility slot 9233 | -6/Lower Caves | Discovered new exit (range 20) 9284 | -6/Lower Caves | Build established: Derelict-Gladiator 9337 | -6/Lower Caves | Lost 5 parts (2n3w) 9373 | -6/Lower Caves | Entered another Lower Caves area 9473 | -6/Lower Caves | Identified exit to Factory 9473 | -6/Lower Caves | X0-1V1 revealed exit location to -5/Factory 9534 | -6/Lower Caves | Spotted B-75 Beast 9558 | -6/Lower Caves | X0-1V1 activates XOMVISION 9569 | -6/Lower Caves | Core integrity fell below 50% 9586 | -6/Lower Caves | X0-1V1 sent hostile S-27 Virus (x3) 9593 | -6/Lower Caves | X0-1V1 vaporized surrounding terrain (radius 17) 9611 | -6/Lower Caves | Discovered new exit (range 9) 9863 | -6/Lower Caves | Build established: Derelict-Mutant 9968 | -6/Lower Caves | X0-1V1 activates XOMVISION 10133 | -6/Lower Caves | System corruption reached 10% 10168 | -6/Lower Caves | Lost 3 parts (1p2n) 10417 | -6/Lower Caves | Build established: Mutant 10558 | -6/Lower Caves | Core integrity restored by X0-1V1 (+238) 10979 | -6/Lower Caves | Core integrity restored by X0-1V1 (+238) 11122 | -6/Lower Caves | X0-1V1 sent hostile Thug (x3) 11125 | -6/Lower Caves | Scrapoid Pod released 06L05-D (x5) 11267 | -6/Lower Caves | Entered Data Miner 11267 | -6/Data Miner | Accompanied by 5 allies 11267 | -6/Data Miner | Discovered new exit (range 6) 11279 | -6/Data Miner | Met Data Miner 11313 | -6/Data Miner | Learned location of Section 7 (-2) 11313 | -6/Data Miner | Acquired the access code to Warlord's prototype stash 11333 | -6/Data Miner | Received God Mode back door access code from Data Miner 11342 | -6/Data Miner | Destroyed Data Miner 11343 | -6/Data Miner | Data Conduit disabled 11417 | -6/Data Miner | Found Prototype Device 11419 | -6/Data Miner | Identified Exp. Thermal Shield 11451 | -6/Data Miner | Build established: Scavenger-Mutant 11491 | -6/Data Miner | Found Prototype Hackware 11493 | -6/Data Miner | Found Prototype Hackware 11496 | -6/Data Miner | Found Prototype Hackware 11543 | -6/Data Miner | Entered Proximity Caves 11543 | -5/Proximity Caves | Accompanied by 4 allies 11625 | -5/Proximity Caves | Spotter reported a threat 11627 | -5/Proximity Caves | Spotter reported a threat 11638 | -5/Proximity Caves | X0-1V1 rewrote 06L02-D IFF filter 11639 | -5/Proximity Caves | Spotted B-75 Beast 11778 | -5/Proximity Caves | Discovered exit to Factory (range 9) 11788 | -5/Proximity Caves | Entered Factory 11788 | -5/Factory | Evolved 2 slots: Propulsion x1, Utility x1 11789 | -5/Factory | Identified exit to Upper Caves 12087 | -5/Factory | X0-1V1 revealed exit location to -5/Upper Caves 12088 | -5/Factory | Build established: Scavenger-Assassin 12101 | -5/Factory | Discovered new exit (range 11) 12105 | -5/Factory | X0-1V1 vaporized surrounding terrain (radius 22) 12294 | -5/Factory | X0-1V1 enhanced Transport squad support 12314 | -5/Factory | Allied Derelicts emerged from ambush trap array 12393 | -5/Factory | X0-1V1 redirected Transport squads to designated parking area 12416 | -5/Factory | Build established: Scavenger-Mutant 12516 | -5/Factory | Lost 3 allies 12517 | -5/Factory | X0-1V1 added 0b10 threat records associated with you (major) 12527 | -5/Factory | Loaded intel: 8 recycling unit locations 12538 | -5/Factory | X0-1V1 sent hostile B-60 Warrior (x3) 12594 | -5/Factory | Core integrity fell below 50% 12622 | -5/Factory | Core integrity fell below 20% 12664 | -5/Factory | Identified Quantum Router 12666 | -5/Factory | Identified System Mapper 12674 | -5/Factory | Lost 15 parts (2p5n6u2w) 12746 | -5/Factory | Sucked down chute 12746 | -5/Factory | Entered Waste 12750 | -5/Waste | Spotted C-40 Crusher 12767 | -5/Waste | Spotted C-40 Crusher 12772 | -5/Waste | Spotted C-40 Crusher 12783 | -5/Waste | Spotted C-40 Crusher 12783 | -5/Waste | Spotted C-40 Crusher 12786 | -5/Waste | Warlord forces began an assault 12792 | -5/Waste | Allies destroyed C-40 Crusher 12805 | -5/Waste | Allies destroyed C-40 Crusher 12811 | -5/Waste | Allies destroyed C-40 Crusher 12820 | -5/Waste | Allies destroyed C-40 Crusher 12832 | -5/Waste | Allies destroyed C-40 Crusher 12838 | -5/Waste | Spotted C-40 Crusher 12851 | -5/Waste | Lost 7 allies 12865 | -5/Waste | Discovered new exit (range 22) 12885 | -5/Waste | Identified exit to Factory 12907 | -5/Waste | Entered Factory 12907 | -5/Factory | Accompanied by 8 allies 12912 | -5/Factory | X0-1V1 sent you to a vault 12973 | -5/Factory | Identified exit to Factory 12973 | -5/Factory | X0-1V1 revealed exit location to -4/Factory 13009 | -5/Factory | Lost 3 allies 13020 | -5/Factory | X0-1V1 activates XOMVISION 13025 | -5/Factory | X0-1V1 revealed exit location to -4/Factory 13096 | -5/Factory | X0-1V1 revealed exit location to -5/Upper Caves 13145 | -5/Factory | X0-1V1 revealed exit location to -4/Factory 13227 | -5/Factory | Core integrity restored by X0-1V1 (+190) 13253 | -5/Factory | Loaded intel: 7 recycling unit locations 13354 | -5/Factory | X0-1V1 upgraded hostiles (x3) 13401 | -5/Factory | X0-1V1 revealed exit location to -5/Upper Caves 13446 | -5/Factory | Build established: Hacker-Scout 13481 | -5/Factory | X0-1V1 revealed exit location to -4/Factory 13526 | -5/Factory | Forged Quantum Companion 13616 | -5/Factory | Entered Upper Caves 13631 | -5/Upper Caves | X0-1V1 activates XOMVISION 13645 | -5/Upper Caves | Core integrity restored by X0-1V1 (+160) 13653 | -5/Upper Caves | Learned Factory garrison access intel 13716 | -5/Upper Caves | A Derelict revealed a hidden shortcut to "reach the base" 13716 | -5/Upper Caves | Identified exit to Warlord 13755 | -5/Upper Caves | Discovered new exit (range 15) 13760 | -5/Upper Caves | Identified exit to Upper Caves 13760 | -5/Upper Caves | Entered another Upper Caves area 13761 | -5/Upper Caves | Discovered exit to Factory (range 8) 13763 | -5/Upper Caves | Entered Factory 13763 | -4/Factory | Evolved 2 slots: Propulsion x1, Utility x1 13764 | -4/Factory | Loaded intel: 4 garrison access locations 13786 | -4/Factory | X0-1V1 activates XOMVISION 13843 | -4/Factory | Identified exit to Research 13843 | -4/Factory | X0-1V1 revealed exit location to -3/Research 13923 | -4/Factory | X0-1V1 released a cloud of subatomizers 14045 | -4/Factory | Loaded intel: 8 recycling unit locations 14060 | -4/Factory | Central database locked down 14116 | -4/Factory | X0-1V1 redirected Transport squads to designated parking area 14160 | -4/Factory | Discovered exit to Research (range 13) 14193 | -4/Factory | Entered Research 14193 | -3/Research | Evolved 2 slots: Utility x2 14252 | -3/Research | System corruption reached 10% 14277 | -3/Research | Found Prototype Launcher 14282 | -3/Research | Found Prototype Launcher 14313 | -3/Research | Identified Hellfire Missile Launcher (x2) 14313 | -3/Research | Central database locked down 14386 | -3/Research | Lost 4 parts (1p1n1u1w) 14419 | -3/Research | Identified exit to Quarantine 14419 | -3/Research | X0-1V1 revealed exit location to -3/Quarantine 14525 | -3/Research | Loaded intel: 5 recycling unit locations 14549 | -3/Research | X0-1V1 vaporized surrounding terrain (radius 16) 14613 | -3/Research | Crushed by falling debris 14678 | -3/Research | Core integrity fell below 50% 14722 | -3/Research | Lost 16 parts (3p7n4u2w) 14731 | -3/Research | Core integrity fell below 20% 14767 | -3/Research | Discovered new exit (range 11) 14806 | -3/Research | X0-1V1 sent hostile Guerrilla (x1) 14816 | -3/Research | X0-1V1 added 0b10 threat records associated with you (considerable) 14856 | -3/Research | X0-1V1 sent hostile H-77 Assassin (x2) 14874 | -3/Research | Destroyed by H-77 Assassin with Coil Gun Last Messages --------------- 14863_ Deflected attack with Quantum Companion. 14865_ Penetrated by Slug. 14865_ Imp. Antigrav System destroyed. 14865_ K-01 Serf collects debris. 14866_ X0-1V1 makes it rain matter. 14868_ Penetrated by Slug. 14868_ Slug penetrates Wall. 14868_ K-01 Serf collects debris. 14869_ X0-1V1 manipulates the space around you (+38% KI resistance). 14870_ Penetrated by Slug. 14870_ Slug penetrates Wall. 14870_ Imp. Antigrav System destroyed. 14871_ Penetrated by Slug. 14871_ Slug penetrates Wall. 14873_ Penetrated by Slug. 14873_ Imp. Antigrav System destroyed. 14873_ Slug penetrates Wall. 14874_ Penetrated by Slug. 14874_ X0-1V1 chuckles heartily! Map ----- +----------------------------------------------------+ | ?????????????????????????????????????????????????? | | ?????????????????????????????????????????????????? | | ?????????????????????????????????????????????????? | | ?????????????????????????????????????????????????? | | ?????????????????????????????????????????????????? | | ?????????????????????????????????????????????????? | | ?????????????????????????????????????????????????? | | ?????????????????????????????????????????????????? | | ?????????????????????????????????????????????????? | | ???????????????####+####?????????????????????????? | | ???????????????# ?????????????????????????? | | ???????????????# ######???????##?????????? | | ???????????????# # ##### ###???????? | | ???????????????? """ + ???????? | | ???????????????? """ # ! < ???????? | | ????????????????? """ # ##### ??????????? | | ????????????????? ?##"####?????????????????? | | ????????????????! ?#[ ! #???? ???????????? | | ???????????????###########[% % #? ??????????? | | ???????? =%+%%!!%#? #???????? | | ???????????????###########|%|% ## # ??????? | | ?????????????#??????#?#####/##### #??? ???? | | ??????#???? ? ???#??###! =!%!% #" # ???"??? | | ????##?## ? ?##### ; =%[!=%####"###???######## | | ????#?##? ? #### #h h]=! #! !???# | | ???#?##? ?### # !@%% # = ???# | | ????##??#? =## # % % %# ? ## | | #??#?? ? # #%%=] # """"" ## """ | | ? ?########+###########%!!=% # """"" !"# """ | | T? ? +!=! = %# """"" "# """ | | ? ## #####+###########!%%[%!% # "" | | ##??## # #####;#### "" | | +#?## #?# # # %k!###/#############+## | | ?? #? ### # # %| ^ | | ??#? ### # # % | | ? ## ### # # | | ? ##?### # # | | ##?#?##?####" " !##########+######### | | #? ####### #"# ### #! = #?? | | ? ?? ??#?## !! # # # #?? | | ? ??# #########!% " # # * #?? | | ## ![%%[=#[[ # # # #?? | | ###?# ########=#% " %# # #?? | | #?#?#?########/##"""#####" " ##""#""""#####?? | | ##? #?#### != = "" """"""# ] #????? | | ? ?#? ??#?## [ "" "# #??? ? | | ?### ###### """"" "" """ "" """" #????? | | ##### #?####! """T"" "! " " "" ""S"" #????? | | ?###? # ? # "" " " " "" "" "" ??????" | | #??## #? ?# + " " "" ??????? | +----------------------------------------------------+ Best States ------------- Heat Dissipation 65 Energy Generation 39 Energy Capacity 1520 Matter Stores 926 Matter Capacity 1200 Sight Range 27 Robot Scan Range 18 Terrain Scan Range 20 Terrain Scan Density 210 Jamming Range 14 Armor Coverage 450 Resistance: KI 38 Resistance: TH 30 Melee Speed Boost 20 Evasion (%) 65 Melee Accuracy 8 Core Analysis 6 Recoil Reduction 4 Particle Charging 25 Offensive Hacking 30 Defensive Hacking 25 Item Schematics ----------------- Combat Drone Bay | -6/Data Miner | Free Lgt. Regenerative Plating | -6/Data Miner | Free Exp. Cesium-ion Thruster | -6/Data Miner | Free Imp. Matter Compressor | -6/Data Miner | Free Hvy. Proton Cannon | -6/Data Miner | Free Field Propulsion Array | -6/Data Miner | Free Adv. Cryofiber Web | -6/Data Miner | Free Force Lance | -6/Data Miner | Free Imp. Phase Shifter | -6/Data Miner | Free Myomer Leg | -6/Data Miner | Free Q-thruster | -6/Data Miner | Free Adv. Recalibrator | -6/Data Miner | Free Neutron Missile Launcher | -4/Factory | Scanalyzed Exp. Weapon Shielding | -3/Research | Scanalyzed Robot Schematics ------------------ M-13 Machinist | -10/Materials | Hacked L-31 Rogue | -8/Recycling | Hacked E-15 Imp | -6/Data Miner | Free I-47 Archangel | -6/Data Miner | Free A-15 Conveyor | -6/Data Miner | Free O-32 Director | -6/Data Miner | Free Fabricated ------------ Nothing Repaired ---------- Nothing Studied --------- Greatsword | -5/Factory | Hacked Lgt. Fission Core | -5/Factory | Hacked Hvy. Shock Bomb Launcher | -5/Factory | Hacked Lrn. Proton Cannon | -4/Factory | Hacked Imp. Gyrokinetic Inverter | -3/Research | Hacked Gyrokinetic Inverter | -3/Research | Hacked HERF Cannon | -3/Research | Hacked Alien Tech Used ----------------- None Achievements -------------- Friends Forever Challenges ------------ None Game ------ Seed TimingExpertRocket Manual? 0 Play Time 03:20:12 Cumulative 307.6 hours Start 2026.07.04 @ 13:36:36 End 2026.07.05 @ 00:28:41 Sessions 12 Manual Loads 0 Difficulty Rogue Special Mode None Game No. 123 Rogue 118 Adventurer 5 Explorer 0 Win Type - Total 8 Types 4/0/2/1/0/0/0/0/0/1 Lore% 74 Gallery% 71 Achievement% 65 Wizard Run 0 Options --------- Layout 1 ASCII 0 Keyboard 0 Movement Numpad Keybinds 0 Fullscreen 1 Font 24/Smallcaps Map View 50x35 Zoom Use 0% Tactical HUD 1 Map Filters NONE Filters NONE Steam 1 RUN: 65babcbd-af37-42d2-a660-63bea274fda5